bitfinex-derivatives/quotes_ETHF0:USTF0_20250309
["timestamp","ask_amount","ask_price","bid_price","bid_amount"]
[1741486450176,4.0271,2192.2,2192.0,0.54753]
[1741486450376,4.0271,2192.2,2191.9,1.81294257]
[1741486450579,4.0271,2192.2,2192.0,4.77723]
[1741486450969,4.0271,2192.2,2192.1,2.18463665]
[1741486452782,3.2078,2192.3,2192.1,2.18463665]
[1741486453777,3.2078,2192.3,2192.1,2.73213665]
[1741486453976,3.2078,2192.3,2192.1,0.4553733]
[1741486454282,3.2078,2192.3,2192.0,4.77722]
[1741486454675,3.2078,2192.3,2191.9,1.81294257]
[1741486454879,3.2078,2192.3,2191.9,2.36049257]
[1741486456684,3.2078,2192.3,2192.0,0.54753]
[1741486456992,3.2078,2192.3,2191.9,0.08370922]
[1741486457182,3.2078,2192.3,2191.8,14.09370925]
[1741486457385,3.2078,2192.3,2191.8,15.88383298]
[1741486457589,3.2078,2192.3,2192.0,0.54753]
[1741486458776,5.2158,2192.3,2191.9,0.00456839]
[1741486458982,3.2078,2192.0,2191.9,0.00456839]
[1741486459778,7.2792,2192.0,2191.9,0.00456839]
[1741486459983,7.2792,2192.0,2191.4,12.7797]
[1741486460488,7.2792,2192.0,2191.6,0.54762]
[1741486460682,7.2792,2192.0,2191.6,1.85365897]
[1741486460889,7.2792,2192.0,2191.6,0.54764]
[1741486461585,7.2792,2192.0,2191.4,12.7797]
[1741486461784,3.2078,2191.6,2191.4,12.7797]
[1741486461984,4.4245,2191.5,2191.4,12.7797]
[1741486462789,4.4245,2191.5,2191.4,14.61747516]
[1741486463196,4.4245,2191.5,2191.3,20.483]
[1741486463382,4.4245,2191.5,2190.6,1.44909896]
[1741486463383,4.7432,2191.4,2190.6,0.54788]
[1741486463585,3.2078,2191.1,2190.6,4.2031]
[1741486463782,3.2078,2190.8,2189.9,2.67444397]
[1741486464081,3.2078,2190.2,2189.7,5.88224397]
[1741486464279,3.2078,2190.2,2189.5,25.02331196]
[1741486464485,3.2078,2190.5,2189.7,3.2078]
[1741486464691,2.54186762,2190.5,2190.4,0.54794]
[1741486464887,8.9032,2191.0,2190.4,3.2078]
[1741486465083,7.4915,2191.4,2190.9,0.5478]
[1741486465283,3.27544798,2191.3,2190.8,3.75563]
[1741486465483,3.2078,2191.1,2190.4,4.68244397]
[1741486465686,3.2078,2191.1,2190.5,4.201]
[1741486465687,4.2837,2191.0,2190.5,4.201]
[1741486465882,3.2078,2190.7,2190.4,4.3779]
[1741486466091,3.2078,2190.7,2190.1,2.008]
[1741486467084,3.2078,2190.7,2190.3,0.54795]
[1741486467284,3.2146526,2191.0,2190.6,0.54789]
[1741486467490,3.2146526,2191.0,2190.7,4.201]
[1741486467688,3.2146526,2191.0,2190.8,4.3018]
[1741486467892,3.2146526,2191.0,2190.2,3.2078]
[1741486468090,3.2078,2190.7,2190.2,7.5096]
[1741486468693,4.3554,2190.8,2190.4,0.54792]
[1741486468894,4.3554,2190.8,2190.5,4.3524]
[1741486469089,4.3554,2190.8,2190.6,2.02503665]
[1741486469493,3.2078,2190.7,2190.5,4.3524]
[1741486469895,4.3554,2190.8,2190.5,4.3524]
[1741486470296,3.2078,2190.7,2190.1,2.008]
[1741486470595,3.2078,2190.7,2190.0,2.008]
[1741486470794,3.2078,2190.4,2190.0,2.008]
[1741486470990,8.53207899,2190.8,2190.6,0.54787]
[1741486471193,5.32427899,2190.8,2190.6,0.54787]
[1741486471398,5.32427899,2190.8,2190.7,4.5044]
[1741486471795,7.596,2191.4,2190.7,4.5044]
[1741486471990,11.6478,2191.4,2191.0,3.2078]
[1741486472195,2.97687899,2191.9,2191.0,3.2078]
[1741486472196,3.2078,2191.8,2191.2,0.54772]
[1741486472501,8.44,2191.8,2191.2,0.54772]
[1741486472698,8.44,2191.8,2191.1,6.41213665]
[1741486472900,11.6478,2191.8,2191.2,0.54772]
[1741486473090,0.0068526,2191.7,2191.2,0.5545726]
[1741486473297,0.0068526,2191.7,2191.3,0.54771]
[1741486473997,0.0068526,2191.7,2191.3,3.2078]
[1741486474299,0.0068526,2191.7,2191.5,0.54765]
[1741486474595,0.0068526,2191.7,2191.4,0.54768]
[1741486475192,0.0068526,2191.7,2191.3,1.47873665]
[1741486475397,3.2078,2191.5,2191.2,0.0068526]
[1741486475598,4.4397,2191.4,2191.2,0.0068526]
[1741486477392,3.2078,2191.5,2191.2,0.5545726]
[1741486478002,3.2078,2191.5,2191.2,0.0068526]
[1741486478195,3.2078,2191.5,2191.1,4.6899759]
[1741486478400,3.2078,2191.5,2191.1,4.1422259]
[1741486478603,3.2078,2191.5,2191.3,0.54771]
[1741486479196,3.2078,2191.5,2191.4,0.54769]
[1741486479400,3.2078,2191.5,2191.1,4.1490785]
[1741486479694,3.2078,2191.5,2191.3,0.54771]
[1741486480100,3.2078,2191.5,2191.1,4.1490785]
[1741486480301,3.2078,2191.5,2191.4,0.54769]
[1741486480806,3.2078,2191.5,2191.3,0.5477]
[1741486481301,3.2078,2191.5,2191.1,2.42001515]
[1741486481499,3.2078,2191.5,2191.2,4.5622]
[1741486481805,7.381,2191.6,2191.3,0.5477]
[1741486481994,7.381,2191.6,2191.2,4.5622]
[1741486481995,7.381,2191.6,2191.2,5.10992]
[1741486482504,7.381,2191.6,2191.1,2.96776515]
[1741486482897,7.381,2191.6,2191.1,2.42001515]
[1741486483298,7.381,2191.6,2191.1,2.96776515]
[1741486484307,7.381,2191.6,2191.1,0.1432518]
[1741486484498,7.381,2191.6,2191.2,0.54774]
[1741486484900,7.381,2191.6,2191.1,0.5546026]
[1741486485099,3.2078,2191.2,2191.1,0.0068526]
[1741486485301,3.2078,2191.2,2190.6,21.04088]
[1741486485496,3.2078,2190.9,2190.6,20.493]
[1741486485800,3.75561,2190.9,2190.2,0.54798]
[1741486486098,2.008,2191.0,2190.1,2.008]
[1741486486099,4.1576,2190.8,2190.4,0.54792]
[1741486486300,3.2078,2190.7,2190.4,0.54792]
[1741486486909,3.2078,2190.7,2190.2,4.339]
[1741486487110,3.2078,2190.7,2190.4,0.54793]
[1741486487606,4.4837,2191.1,2190.5,2.008]
[1741486487801,7.6524,2190.9,2190.5,2.008]
[1741486488514,3.2078,2190.6,2190.2,5.16612665]
[1741486488707,4.2721,2190.5,2190.2,5.16612665]
[1741486488905,4.2721,2190.5,2190.2,2.55596]
[1741486489110,8.7098,2190.5,2190.2,2.55596]
[1741486489411,8.7098,2190.5,2190.0,3.2078]
[1741486489614,8.7098,2190.5,2190.1,0.54801]
[1741486489911,8.7098,2190.5,2190.0,3.75582]
[1741486490506,8.7098,2190.5,2190.2,0.54799]
[1741486490704,4.2721,2190.5,2190.0,0.93103665]
[1741486490904,4.2721,2190.5,2190.2,0.54798]
[1741486491303,4.2721,2190.5,2190.1,0.548]
[1741486491706,4.2721,2190.5,2190.0,1.47906665]
[1741486492010,4.4377,2190.4,2190.0,1.47906665]
[1741486492607,4.4377,2190.4,2190.0,0.93103665]
[1741486492913,4.4377,2190.4,2190.0,1.47905665]
[1741486493111,3.2078,2190.2,2190.0,0.54803]
[1741486493411,4.5776,2190.1,2189.9,0.27926665]
[1741486493614,4.5776,2190.1,2190.0,0.54803]
[1741486494506,3.2078,2190.2,2189.8,22.5]
[1741486494907,3.2078,2190.2,2189.8,20.491]
[1741486495902,3.2078,2189.9,2189.8,20.491]
[1741486496109,3.2078,2190.2,2189.8,20.491]
[1741486496310,5.40657899,2190.4,2189.9,0.54805]
[1741486496510,5.40657899,2190.4,2189.8,18.76228665]
[1741486497113,4.4377,2190.4,2189.9,3.2078]
[1741486497316,4.4377,2190.4,2189.9,7.8729]
[1741486497504,4.4377,2190.4,2190.1,0.548]
[1741486497710,4.6374,2190.3,2190.0,0.54802]
[1741486498012,4.6374,2190.3,2189.9,8.42096]
[1741486498215,4.6374,2190.3,2189.9,3.2078]
[1741486498717,4.6374,2190.3,2190.1,0.54801]
[1741486498906,4.6374,2190.3,2190.0,4.6651]
[1741486499108,4.6374,2190.3,2189.9,3.75585]
[1741486499513,3.2078,2190.2,2189.9,0.93103665]
[1741486499712,3.2078,2190.2,2189.9,1.47909665]
[1741486500116,3.2078,2190.2,2190.0,0.54802]
[1741486500317,3.2078,2190.2,2189.9,1.47909665]
[1741486500813,3.2078,2190.2,2189.8,18.76228665]
[1741486501015,3.2078,2189.9,2189.5,4.99863205]
[1741486501212,4.5685,2189.8,2189.5,3.75595]
[1741486501403,8.9753,2189.8,2189.5,3.2078]
[1741486501608,8.9753,2189.8,2189.5,3.75595]
[1741486501807,8.9753,2189.8,2189.6,0.54814]
[1741486502009,8.9753,2189.8,2189.5,3.75595]
[1741486502214,3.2078,2189.9,2189.5,3.2078]
[1741486502415,7.6146,2190.2,2190.0,0.54804]
[1741486502615,7.6146,2190.2,2189.7,6.47033665]
[1741486502804,7.6146,2190.2,2189.7,8.49333665]
[1741486503008,7.6146,2190.2,2189.7,6.8792]
[1741486503618,7.6146,2190.2,2189.7,6.3311]
[1741486503821,3.2078,2189.9,2189.5,5.01914557]
[1741486504022,4.4113,2189.8,2189.5,5.01914557]
[1741486504419,3.2078,2189.9,2189.5,5.01914557]
[1741486504615,4.2817,2190.5,2189.8,3.2078]
[1741486504922,4.2817,2190.5,2189.9,5.19975]
[1741486504923,4.4113,2190.4,2189.9,5.19975]
[1741486505107,4.4113,2190.4,2189.9,4.6517]
[1741486505312,4.5736,2190.3,2189.9,4.6517]
[1741486505712,4.5736,2190.3,2189.9,2.92299665]
[1741486506019,4.5736,2190.3,2189.9,0.54806]
[1741486506218,4.5736,2190.3,2189.8,5.2368]
[1741486506523,4.5736,2190.3,2190.1,0.54801]
[1741486506817,4.5736,2190.3,2189.9,0.54806]
[1741486507117,4.5736,2190.3,2189.8,3.2078]
[1741486507819,4.5736,2190.3,2189.9,0.54805]
[1741486508217,4.5736,2190.3,2189.8,3.2078]
[1741486508516,3.2078,2190.2,2189.8,3.2078]
[1741486508819,3.2078,2190.2,2189.8,1.47912665]
[1741486509021,3.2078,2190.2,2189.8,4.78139]
[1741486509820,3.2078,2190.2,2189.9,0.54806]
[1741486510418,3.2078,2190.2,2189.8,4.2333]
[1741486510814,3.2078,2190.2,2189.6,2.032]
[1741486511119,5.2398,2190.2,2189.7,0.54811]
[1741486511709,5.2398,2190.2,2189.6,0.30334665]
[1741486512113,3.2078,2189.9,2189.6,0.85146665]
[1741486512314,9.202,2189.8,2189.6,0.54812]
[1741486513125,9.202,2189.8,2189.4,4.449]
[1741486513723,13.4218,2189.8,2189.2,2.35321256]
[1741486514019,3.2078,2189.6,2189.1,11.9004]
[1741486514220,3.2078,2189.6,2189.1,8.21216]
[1741486514528,3.2078,2189.6,2189.1,4.4561]
[1741486514822,3.2078,2189.6,2189.1,2.17933665]
[1741486515211,3.2078,2189.6,2189.0,22.85427277]
[1741486516120,3.2078,2189.6,2189.0,22.30599277]
[1741486516619,3.2078,2189.6,2189.4,0.54819]
[1741486516818,3.2078,2189.6,2189.3,0.5482]
[1741486517016,3.2078,2189.6,2189.1,4.5558]
[1741486517614,3.2078,2189.6,2189.2,0.54824]
[1741486517815,3.2078,2189.6,2189.1,2.82727665]
[1741486518114,3.2078,2189.6,2189.1,7.42307665]
[1741486518314,3.2078,2189.6,2189.2,0.54823]
[1741486518620,3.2078,2189.6,2189.1,4.5958]
[1741486518923,3.2078,2189.6,2189.0,20.499]
[1741486519423,5.2428,2189.6,2189.0,21.04728]
[1741486519928,5.2428,2189.6,2189.0,20.499]
[1741486520423,5.2428,2189.6,2189.1,0.54826]
[1741486520824,5.2428,2189.6,2189.0,18.77049665]
[1741486521223,5.2428,2189.6,2189.3,0.54821]
[1741486522522,5.2428,2189.6,2189.0,20.63068967]
[1741486522919,5.2428,2189.6,2189.2,0.54823]
[1741486523123,9.202,2189.8,2189.2,0.54823]
[1741486523325,12.4098,2189.8,2189.3,0.5482]
[1741486523829,12.4098,2189.8,2189.0,18.90215632]
[1741486524025,12.4098,2189.8,2189.1,0.54826]
[1741486524326,12.4098,2189.8,2189.2,0.54822]
[1741486524527,12.4098,2189.8,2189.0,18.90215632]
[1741486525227,12.4098,2189.8,2189.3,0.5482]
[1741486525436,12.4098,2189.8,2189.4,4.4287]
[1741486525927,12.4098,2189.8,2189.4,4.97687]
[1741486526229,9.202,2189.8,2189.4,4.97687]
[1741486526733,9.202,2189.8,2189.5,0.54816]
[1741486527225,9.202,2189.8,2189.4,2.70009665]
[1741486527421,9.7364,2190.1,2189.4,2.70009665]
[1741486527627,8.8534,2190.0,2189.6,0.54812]
[1741486527827,8.8534,2190.0,2189.6,0.54814]
[1741486528729,8.8534,2190.0,2189.4,2.70009665]
[1741486528917,8.8534,2190.0,2189.5,0.54816]
[1741486529520,8.8534,2190.0,2189.4,2.70009665]
[1741486529722,3.2078,2189.7,2189.3,11.0484]
[1741486529924,8.8727,2189.6,2189.3,9.31981665]
[1741486530130,8.8727,2189.6,2189.4,0.54818]
[1741486530522,8.8727,2189.6,2189.3,7.83300665]
[1741486531023,8.8727,2189.6,2189.4,0.54819]
[1741486531628,8.8727,2189.6,2189.2,7.9153]
[1741486531828,4.619,2189.5,2189.2,4.7075]
[1741486532227,4.619,2189.5,2189.0,26.23792632]
[1741486532635,4.6258526,2189.5,2189.0,17.0419633]
[1741486532831,3.2078,2189.3,2189.0,17.0419633]
[1741486533027,4.5552,2189.2,2189.0,14.76519995]
[1741486533229,8.8973,2189.2,2189.0,14.76519995]
[1741486536029,4.6258526,2189.5,2189.0,13.0366966]
[1741486536223,4.707,2189.4,2189.2,0.54824]
[1741486536429,4.707,2189.4,2189.1,9.27585]
[1741486536825,0.0068526,2189.5,2189.1,8.7276]
[1741486537726,0.0068526,2189.5,2189.2,0.54822]
[1741486539235,0.0068526,2189.5,2189.1,6.99905665]
[1741486539536,0.0068526,2189.5,2189.0,17.4670966]
[1741486539738,0.0068526,2189.5,2189.0,18.0153866]
[1741486540138,0.0068526,2189.5,2189.1,0.54826]
[1741486540332,0.0068526,2189.5,2189.0,17.4670966]
[1741486540540,0.0068526,2189.5,2189.1,5.07935]
[1741486540836,0.0068526,2189.5,2189.1,4.5311]
[1741486541035,0.0068526,2189.5,2189.2,0.54823]
[1741486541334,0.0068526,2189.5,2189.1,5.07935]
[1741486542033,0.0068526,2189.5,2189.1,2.25433665]
[1741486542238,0.0068526,2189.5,2189.2,4.52]
[1741486542439,0.0068526,2189.5,2189.3,0.5482]
[1741486542645,0.0068526,2189.5,2189.2,4.52]
[1741486542844,0.0068526,2189.5,2189.2,5.06822]
[1741486543333,0.0068526,2189.5,2189.2,4.52]
[1741486543839,0.0068526,2189.5,2189.2,5.06824]
[1741486544934,0.0068526,2189.5,2189.1,2.80258665]
[1741486545135,0.0068526,2189.5,2189.1,0.54826]
[1741486545336,0.0068526,2189.5,2189.2,0.54823]
[1741486545738,0.0068526,2189.5,2189.2,0.54822]
[1741486547036,0.0068526,2189.5,2189.1,0.54825]
[1741486547437,3.2078,2189.4,2189.0,15.73860325]
[1741486547638,7.5665,2189.4,2189.0,15.73860325]
[1741486547840,4.357,2189.3,2189.0,15.73860325]
[1741486548039,4.4852,2189.2,2189.0,15.73860325]
[1741486548239,4.4852,2189.2,2189.0,13.4618399]
[1741486548940,4.4852,2189.2,2189.0,12.9135699]
[1741486549141,5.2358,2189.4,2189.2,0.54824]
[1741486549546,5.2358,2189.4,2189.1,0.54825]
[1741486550840,5.2358,2189.4,2189.0,4.4304]
[1741486551045,0.0068526,2189.5,2189.3,0.54819]
[1741486551247,0.0068526,2189.5,2189.4,2.44923665]
[1741486551638,0.0068526,2189.5,2189.4,2.99742665]
[1741486551842,0.0068526,2189.5,2189.4,7.82342665]
[1741486552042,7.5987,2190.0,2189.4,7.27523665]
[1741486552350,7.5987,2190.0,2189.5,3.2078]
[1741486552544,4.5572,2189.9,2189.2,0.54823]
[1741486552747,4.5572,2189.9,2189.1,12.5808]
[1741486553053,3.2078,2189.7,2189.2,0.54822]
[1741486553253,3.2146526,2189.7,2189.3,0.0068526]
[1741486553556,4.6361,2189.6,2189.3,0.0068526]
[1741486554242,3.2078,2189.4,2189.1,9.92125]
[1741486554653,3.2078,2189.4,2189.1,9.373]
[1741486554849,3.2078,2189.4,2189.2,0.54822]
[1741486555247,3.2078,2189.4,2189.1,4.826]
[1741486555442,3.2078,2189.4,2189.3,0.54821]
[1741486555953,4.6361,2189.6,2189.3,0.5482]
[1741486556760,4.6361,2189.6,2189.1,4.826]
[1741486556954,4.6361,2189.6,2189.3,0.54821]
[1741486557356,4.6361,2189.6,2189.1,6.30524665]
[1741486557556,3.2146526,2189.7,2189.1,6.30524665]
[1741486557757,3.2146526,2189.7,2189.6,0.54814]
[1741486558257,0.0068526,2189.7,2189.6,0.54814]
[1741486558466,0.0068526,2189.7,2189.3,2.028]
[1741486558765,0.0068526,2189.7,2189.4,0.54817]
[1741486558959,3.2146526,2189.7,2189.4,0.54819]
[1741486560263,3.2146526,2189.7,2189.3,2.028]
[1741486560458,3.2146526,2189.7,2189.5,0.54814]
[1741486560762,3.2146526,2189.7,2189.6,4.7945]
[1741486560970,3.2146526,2189.7,2189.5,0.54815]
[1741486561558,3.2146526,2189.7,2189.6,0.54814]
[1741486562070,3.2146526,2189.7,2189.4,4.4657]
[1741486562258,7.7405526,2189.7,2189.3,0.54819]
[1741486562663,7.7405526,2189.7,2189.4,0.54818]
[1741486562857,7.7405526,2189.7,2189.4,0.54817]
[1741486563054,7.7405526,2189.7,2189.2,9.6958]
[1741486563464,7.7405526,2189.7,2189.2,7.41903665]
[1741486563761,3.2146526,2189.7,2189.6,0.54814]
[1741486564562,0.0068526,2189.7,2189.6,0.54814]
[1741486566362,3.4131526,2189.8,2189.7,0.54811]
[1741486566570,3.2078,2190.0,2189.9,0.54806]
[1741486566865,3.2078,2190.0,2189.8,0.54807]
[1741486567060,3.2078,2190.0,2189.4,3.2078]
[1741486567267,3.2078,2190.0,2189.8,0.54807]
[1741486567458,3.2078,2190.0,2189.9,0.54806]
[1741486567665,3.2078,2190.0,2189.7,0.0068526]
[1741486568060,9.0175,2189.9,2189.7,0.0068526]
[1741486568262,4.6457,2189.8,2189.7,0.0068526]
[1741486569669,4.6457,2189.8,2189.5,0.54815]
[1741486570469,4.6457,2189.8,2189.3,3.8601759]
[1741486570669,4.6457,2189.8,2189.4,0.54818]
[1741486571171,4.6457,2189.8,2189.3,3.8601759]
[1741486571370,4.6457,2189.8,2189.4,0.54817]
[1741486571574,4.6457,2189.8,2189.5,0.54816]
[1741486571773,3.2078,2190.0,2189.9,0.54806]
[1741486571972,3.2078,2190.0,2189.6,3.2078]
[1741486572272,3.2078,2190.0,2189.7,0.5481]
[1741486572472,7.9338,2190.0,2189.4,0.94578062]
[1741486572773,7.9338,2190.0,2189.3,3.8601759]
[1741486572967,3.2078,2190.0,2189.9,0.54806]
[1741486574375,3.2078,2190.0,2189.7,6.1324]
[1741486574575,4.7056,2189.9,2189.7,6.1324]
[1741486574877,4.7056,2189.9,2189.8,0.54809]
[1741486575270,3.2078,2190.0,2189.7,6.1324]
[1741486575573,3.2078,2190.0,2189.7,4.40369665]
[1741486575777,3.2078,2190.0,2189.9,0.54806]
[1741486578673,3.2078,2190.0,2189.8,3.03539665]
[1741486578873,3.2078,2190.0,2189.9,0.54806]
[1741486580982,3.2078,2190.0,2189.7,1.12149665]
[1741486581175,3.2078,2190.0,2189.7,1.66959665]
[1741486581176,4.8936,2189.9,2189.7,1.66959665]
[1741486581578,4.5873,2189.8,2189.7,0.5481]
[1741486584378,3.2078,2190.0,2189.3,9.9598]
[1741486584578,7.44076134,2190.0,2189.9,0.54806]
[1741486584873,3.2078,2190.2,2189.7,5.2348]
[1741486585084,3.2078,2190.5,2190.3,0.54794]
[1741486585276,3.2078,2190.5,2190.0,3.2078]
[1741486585588,21.26689164,2190.8,2190.3,3.2078]
[1741486585885,21.26689164,2190.8,2190.5,0.54789]
[1741486586088,21.27374424,2190.8,2190.5,0.54789]
[1741486586379,21.27374424,2190.8,2190.3,3.2078]
[1741486586683,3.2078,2190.6,2190.0,2.57902]
[1741486587081,3.2078,2190.6,2190.1,0.54801]
[1741486587281,5.2408,2190.6,2190.1,0.54801]
[1741486587587,5.2408,2190.6,2189.9,3.2078]
[1741486587886,5.2408,2190.6,2189.9,0.54804]
[1741486588083,4.5104,2190.5,2189.9,0.54804]
[1741486588484,3.2078,2190.3,2189.7,0.5549526]
[1741486588684,2.032,2190.2,2189.7,0.5549526]
[1741486588885,4.8606,2190.1,2189.7,0.5549526]
[1741486589574,4.8606,2190.1,2189.8,0.54809]
[1741486590089,4.8993,2190.0,2189.8,0.54809]
[1741486590280,4.8993,2190.0,2189.7,0.5549526]
[1741486590880,4.8993,2190.0,2189.6,3.2078]
[1741486590881,8.1071,2190.0,2189.6,1.48598925]
[1741486591186,8.1071,2190.0,2189.7,0.54809]
[1741486591389,8.1071,2190.0,2189.8,0.54809]
[1741486591581,8.1071,2190.0,2189.7,0.5481]
[1741486592181,8.1071,2190.0,2189.6,1.48598925]
[1741486592578,8.1071,2190.0,2189.6,2.03410925]
[1741486593183,8.1071,2190.0,2189.7,0.54811]
[1741486593883,8.1071,2190.0,2189.3,3.2078]
[1741486594285,8.1071,2190.0,2189.6,0.54813]
[1741486594492,8.1071,2190.0,2189.3,3.2078]
[1741486594789,8.1071,2190.0,2189.7,0.5481]
[1741486595179,8.1071,2190.0,2189.5,0.54814]
[1741486595383,8.1071,2190.0,2189.6,0.54813]
[1741486596280,8.1071,2190.0,2189.4,9.5846]
[1741486596476,8.1071,2190.0,2189.4,10.95504]
[1741486596681,8.1071,2190.0,2189.8,0.54808]
[1741486596882,8.1071,2190.0,2189.4,9.22635665]
[1741486597083,8.1071,2190.0,2189.8,0.54807]
[1741486597876,8.1071,2190.0,2189.4,9.22635665]
[1741486598080,8.1071,2190.0,2189.8,0.54807]
[1741486598490,8.1071,2190.0,2189.4,9.22635665]
[1741486598686,8.1071,2190.0,2189.9,0.54806]
[1741486598989,8.1071,2190.0,2189.8,0.54807]
[1741486599487,6.9253,2190.0,2189.8,0.54807]
[1741486599787,6.9253,2190.0,2189.9,0.54806]
[1741486599984,6.9253,2190.0,2189.6,3.17109665]
[1741486600185,6.9253,2190.0,2189.9,0.54806]
[1741486601084,6.9253,2190.0,2189.8,0.54806]
[1741486601284,5.83131869,2190.0,2189.9,0.54806]
[1741486601483,4.8338,2190.2,2189.6,7.74920665]
[1741486601688,4.8338,2190.2,2189.9,0.54805]
[1741486601882,4.8338,2190.2,2190.0,0.54804]
[1741486602077,4.8338,2190.2,2189.9,0.54804]
[1741486602290,4.8338,2190.2,2189.6,6.37889665]
[1741486602483,4.8338,2190.2,2189.9,0.54804]
[1741486602688,4.8338,2190.2,2189.9,0.54806]
[1741486603088,4.8338,2190.2,2189.9,0.54804]
[1741486603287,4.6236,2190.1,2189.9,0.54804]
[1741486603686,4.6236,2190.1,2189.6,4.6501933]
[1741486603989,4.6236,2190.1,2190.0,0.54804]
[1741486604990,9.424,2190.1,2190.0,0.54804]
[1741486605588,1.74558696,2190.1,2190.0,0.54804]
[1741486605786,4.9531,2190.4,2189.9,3.2078]
[1741486605988,4.9186,2190.5,2190.2,1.47897665]
[1741486606194,4.9186,2190.5,2190.3,4.8115]
[1741486606490,4.9186,2190.5,2190.4,0.54794]
[1741486608886,3.2078,2190.9,2190.3,1.36992]
[1741486609083,4.6251,2191.0,2190.5,3.2078]
[1741486609286,4.6251,2191.0,2190.8,0.54782]
[1741486609487,4.6251,2191.0,2190.6,4.704]
[1741486609687,4.6251,2191.0,2190.8,0.54782]
[1741486609887,4.6251,2191.0,2190.7,0.54784]
[1741486610188,4.6251,2191.0,2190.7,0.5546926]
[1741486610589,4.6251,2191.0,2190.7,0.0068526]
[1741486610786,4.6251,2191.0,2190.7,0.5547126]
[1741486611389,4.6251,2191.0,2190.8,0.54783]
[1741486611695,7.8329,2191.0,2190.7,1.3036636]
[1741486611991,7.8329,2191.0,2190.8,0.54783]
[1741486612193,4.6572,2190.9,2190.6,2.98191925]
[1741486612695,4.6572,2190.9,2190.8,0.54784]
[1741486614092,9.4843,2190.9,2190.8,0.54784]
[1741486615094,9.4843,2190.9,2190.7,0.54785]
[1741486615396,9.4843,2190.9,2190.5,8.28805996]
[1741486615696,9.4843,2190.9,2190.8,0.54784]
[1741486615997,9.4843,2190.9,2190.7,0.54785]
[1741486616392,9.4843,2190.9,2190.5,8.28805996]
[1741486616595,9.4843,2190.9,2190.8,0.54784]
[1741486617896,3.2078,2191.3,2190.8,5.2238]
[1741486618093,3.2078,2191.3,2190.9,3.32794665]
[1741486618295,1.8001279,2191.2,2190.9,2.78013665]
[1741486618493,31.01879164,2191.5,2191.1,0.54776]
[1741486618693,31.01879164,2191.5,2191.0,5.36467]
[1741486618896,31.01879164,2191.5,2191.1,0.54774]
[1741486619096,9.7587526,2191.5,2191.1,0.54774]
[1741486619594,9.7587526,2191.5,2191.2,0.54773]
[1741486620002,9.7587526,2191.5,2191.0,4.8237526]
[1741486620201,9.7587526,2191.5,2191.2,0.54773]
[1741486620506,9.7587526,2191.5,2191.0,4.8237526]
[1741486620702,9.7587526,2191.5,2191.3,0.54771]
[1741486620892,9.7587526,2191.5,2191.4,0.54769]
[1741486621099,9.7587526,2191.5,2191.3,0.5477]
[1741486621299,9.7587526,2191.5,2191.4,0.54769]
[1741486621899,9.7587526,2191.5,2191.3,0.5477]
[1741486622101,14.7737526,2191.5,2191.3,0.5477]
[1741486622595,0.16642685,2212.3,2191.3,3.2078]
[1741486622596,3.2078,2191.9,2191.3,3.2078]
[1741486622800,3.2078,2191.9,2191.7,0.54761]
[1741486622801,2.2017,2191.8,2191.7,0.54761]
[1741486624203,2.2017,2191.8,2191.4,7.86404665]
[1741486624698,2.2017,2191.8,2191.7,0.54761]
[1741486626005,8.0651,2191.9,2191.8,0.54759]
[1741486626603,0.0068526,2192.0,2191.9,0.54756]
[1741486627808,8.2463,2192.5,2191.6,5.21325736]
[1741486628103,3.2078,2192.2,2191.6,3.84419736]
[1741486628305,9.7489,2192.1,2191.6,3.84419736]
[1741486628505,9.7489,2192.1,2191.9,0.54755]
[1741486628902,9.7489,2192.1,2191.8,0.54759]
[1741486629103,14.8104,2192.1,2191.8,0.54759]
[1741486630304,14.8104,2192.1,2191.6,2.11502401]
[1741486630609,14.8104,2192.1,2191.7,0.5476]
[1741486630797,3.2078,2191.9,2191.6,2.11502401]
[1741486631003,3.2078,2191.9,2191.8,0.54759]
[1741486631912,9.7489,2192.1,2192.0,0.54754]
[1741486632712,9.7489,2192.1,2191.9,0.54755]
[1741486632907,14.4492,2192.1,2191.9,0.54755]
[1741486633309,14.4492,2192.1,2191.6,0.38581066]
[1741486633703,14.4492,2192.1,2191.7,4.5836]
[1741486633904,14.4492,2192.1,2192.0,0.54754]
[1741486634307,3.2146526,2192.2,2192.1,0.54751]
[1741486634602,1.7292052,2192.2,2192.1,0.54751]
[1741486634911,1.76664741,2192.3,2192.2,0.54749]
[1741486635307,1.76664741,2192.3,2191.9,0.54754]
[1741486635522,9.6332,2192.2,2192.0,0.54754]
[1741486635711,9.6332,2192.2,2192.1,0.54751]
[1741486636307,1.77350001,2192.3,2192.0,1.47852665]
[1741486636609,1.77350001,2192.3,2192.2,0.54749]
[1741486637307,0.0068526,2192.3,2192.2,5.55529]
[1741486638211,0.0068526,2192.3,2192.2,6.85369436]
[1741486638714,0.0068526,2192.3,2192.2,1.29840436]
[1741486638919,0.0068526,2192.3,2192.1,0.5475]
[1741486639510,0.0068526,2192.3,2192.0,0.28773665]
[1741486639710,0.0068526,2192.3,2192.1,0.54751]
[1741486640213,0.0068526,2192.3,2192.1,1.8216026]
[1741486640509,0.0068526,2192.3,2192.1,0.54751]
[1741486640716,0.0068526,2192.3,2192.1,0.5475]
[1741486640915,3.2146526,2192.3,2192.1,0.5475]
[1741486641919,3.2146526,2192.3,2191.9,9.5757]
[1741486642414,3.2146526,2192.3,2191.9,7.84643665]
[1741486642615,3.2146526,2192.3,2192.1,0.5475]
[1741486643211,3.2146526,2192.3,2192.2,0.54749]
[1741486643611,0.0068526,2192.3,2192.2,0.54749]
[1741486645412,5.0071,2192.4,2192.0,2.75024908]
[1741486645717,4.9078,2192.5,2192.4,0.54744]